bitfinex/quotes_ETHUSD_20241009
["timestamp","ask_amount","ask_price","bid_price","bid_amount"]
[1728502874743,0.07012052,2419.1,2418.9,1.09342057]
[1728502874906,0.07012052,2419.1,2418.9,1.01074774]
[1728502875491,0.07012052,2419.1,2418.9,1.09342075]
[1728502876598,4.20394052,2419.1,2418.9,0.20394774]
[1728502876798,4.20394052,2419.1,2418.8,5.86346927]
[1728502877106,0.8101,2419.0,2418.7,0.86346927]
[1728502877316,4.20433107,2418.9,2418.7,0.86346927]
[1728502877506,4.13428,2418.8,2418.7,0.86346927]
[1728502877697,0.07021704,2418.8,2418.6,0.86346927]
[1728502879829,0.07021704,2418.8,2418.6,4.99807927]
[1728502880213,4.94406,2419.0,2418.6,0.86346927]
[1728502880531,4.13413,2418.9,2418.6,0.86346927]
[1728502880833,0.07021704,2418.8,2418.6,0.86346927]
[1728502883846,0.07021704,2418.8,2418.7,5.80141927]
[1728502884027,11.6729301,2419.8,2419.0,4.9373]
[1728502884028,0.8114,2419.7,2419.0,4.9373]
[1728502884211,0.8114,2419.7,2419.3,9.07669]
[1728502884402,0.07015271,2419.6,2419.3,4.94333]
[1728502884596,4.94417,2419.7,2419.3,5.02599011]
[1728502884844,0.07015271,2419.5,2419.3,5.02599011]
[1728502884997,4.94417,2419.7,2419.3,5.02599011]
[1728502885205,0.07015271,2419.4,2419.3,5.02599011]
[1728502885428,4.94417,2419.7,2419.3,5.02599011]
[1728502885610,0.07015271,2419.4,2419.3,0.89266011]
[1728502885799,4.94417,2419.7,2419.3,0.89266011]
[1728502885800,4.13292,2419.6,2419.3,0.89266011]
[1728502886444,0.07015271,2419.5,2419.3,0.89266011]
[1728502887763,4.20325271,2419.5,2419.2,5.0]
[1728502888044,0.07015271,2419.5,2419.2,9.13357]
[1728502888214,0.07015271,2419.5,2419.3,0.804]
[1728502888420,0.07015271,2419.5,2419.3,0.88666017]
[1728502888616,4.13293,2419.6,2419.3,0.88666017]
[1728502888818,0.07015271,2419.4,2419.3,0.88666017]
[1728502889040,4.13293,2419.6,2419.3,0.88666017]
[1728502889561,0.07022908,2419.5,2419.3,0.88666017]
[1728502892689,0.07022908,2419.5,2419.3,0.804]
[1728502893163,0.07022908,2419.5,2419.3,0.8866602]
[1728502893360,0.07022908,2419.5,2419.3,2.53855179]
[1728502897455,0.07022908,2419.5,2419.3,0.8866602]
[1728502898180,4.13277,2419.7,2419.3,5.0200202]
[1728502898389,0.07022908,2419.6,2419.3,5.0200202]
[1728502898959,0.07022908,2419.6,2419.3,5.88202872]
[1728502899195,0.07022908,2419.6,2419.3,5.0200202]
[1728502899894,0.07022908,2419.6,2419.5,9.13308]
[1728502900305,0.1202601,2419.8,2419.7,4.13274]
[1728502900682,0.19080276,2419.8,2419.7,4.13274]
[1728502901098,0.19080276,2419.8,2419.6,0.08264698]
[1728502901298,0.19080276,2419.8,2419.7,4.13274]
[1728502902261,0.19080276,2419.8,2419.6,0.08264698]
[1728502902458,0.19080276,2419.8,2419.6,4.21552698]
[1728502904376,0.14080276,2419.8,2419.6,4.21552698]
[1728502904899,0.14080276,2419.8,2419.6,4.73384463]
[1728502910465,0.14080276,2419.8,2419.6,4.65119765]
[1728502912130,0.14080276,2419.8,2419.6,4.73384489]
[1728502913633,0.14080276,2419.8,2419.6,4.65119765]
[1728502915022,0.14080276,2419.8,2419.6,4.73384491]
[1728502915395,0.14080276,2419.8,2419.7,6.32163049]
[1728502915629,0.14080276,2419.8,2419.7,6.97591316]
[1728502915630,0.0702601,2419.8,2419.7,6.97591316]
[1728502915846,0.0702601,2419.8,2419.7,2.27152883]
[1728502915992,0.0702601,2419.8,2419.7,1.38669049]
[1728502916194,0.14104789,2419.8,2419.7,1.38669049]
[1728502917192,4.27361789,2419.8,2419.6,0.08264726]
[1728502917389,4.27361789,2419.8,2419.5,5.0]
[1728502917390,6.04826455,2419.8,2419.5,5.0]
[1728502917795,4.13276,2419.7,2419.3,5.77262622]
[1728502918031,5.90761666,2419.6,2419.3,0.86060622]
[1728502918282,6.75930445,2419.6,2419.2,9.99418622]
[1728502918612,4.98468779,2419.6,2419.2,9.99418622]
[1728502918926,4.98468779,2419.6,2419.2,9.13358]
[1728502919159,4.98468779,2419.6,2419.2,9.99418622]
[1728502920667,0.85168779,2419.6,2419.3,4.13341]
[1728502921555,4.13311,2419.5,2419.2,5.86060622]
[1728502921754,4.13311,2419.5,2419.2,5.0]
[1728502921956,0.07078779,2419.4,2419.2,5.0]
[1728502922724,0.07078779,2419.4,2419.2,6.64161634]
[1728502922978,4.91391,2419.6,2419.2,10.77516634]
[1728502923263,0.07078779,2419.5,2419.2,9.13355]
[1728502924625,0.07078779,2419.5,2419.2,5.0]
[1728502924838,4.20393779,2419.5,2419.2,5.0]
[1728502925622,0.07078779,2419.5,2419.2,5.0]
[1728502925828,5.97865445,2419.5,2419.2,5.0]
[1728502926257,1.84540445,2419.5,2419.2,9.13359]
[1728502926590,0.07078779,2419.5,2419.2,9.13359]
[1728502926798,0.07078779,2419.5,2419.2,9.99419622]
[1728502927951,4.20388779,2419.5,2419.2,5.86060622]
[1728502928654,4.13325,2419.4,2419.2,5.86060622]
[1728502928897,0.07064716,2419.4,2419.2,5.86060622]
[1728502929472,6.66493666,2419.3,2419.2,0.86060622]
[1728502929697,6.66493666,2419.3,2419.1,0.86060622]
[1728502930069,0.07064716,2419.2,2419.0,1.06370231]
[1728502930272,6.66500666,2419.3,2419.0,1.06370231]
[1728502930473,0.07064716,2419.1,2419.0,1.06370231]
[1728502930705,10.79852666,2419.3,2419.0,1.06370231]
[1728502930706,6.66500666,2419.3,2419.0,1.06370231]
[1728502930913,0.07064716,2419.1,2419.0,0.20309609]
[1728502931577,4.89039,2419.3,2419.0,0.20309609]
[1728502931781,0.07064716,2419.2,2419.0,0.20309609]
[1728502932188,0.07064716,2419.1,2419.0,0.20309609]
[1728502933115,4.89039,2419.3,2419.0,0.20309609]
[1728502933310,0.07064716,2419.1,2419.0,0.20309609]
[1728502933497,4.89039,2419.3,2419.0,0.20309609]
[1728502933703,0.07064716,2419.1,2419.0,0.20309609]
[1728502934005,4.89039,2419.3,2419.0,0.20309609]
[1728502934232,0.07064716,2419.2,2419.0,0.20309609]
[1728502934536,4.89039,2419.3,2419.0,0.20309609]
[1728502934835,0.58021767,2419.2,2419.0,0.20309609]
[1728502935043,0.65086483,2419.2,2419.0,0.20309609]
[1728502936810,0.07064716,2419.2,2419.0,0.20309609]
[1728502937035,4.89039,2419.3,2419.0,0.20309609]
[1728502937238,0.07025324,2419.1,2419.0,0.20309609]
[1728502937545,4.89039,2419.3,2419.0,0.20309609]
[1728502937740,0.07025324,2419.1,2419.0,0.20309609]
[1728502937937,4.89039,2419.3,2419.0,0.20309609]
[1728502938100,4.89039,2419.3,2419.0,4.33702609]
[1728502938101,0.07025324,2419.1,2419.0,4.33702609]
[1728502938306,6.69143666,2419.5,2419.1,4.13375]
[1728502938835,6.69139666,2419.5,2419.1,4.13375]
[1728502939344,10.82461666,2419.5,2419.1,4.13375]
[1728502939655,10.82461666,2419.5,2419.1,4.9955869]
[1728502939948,4.13332,2419.4,2419.2,0.8618369]
[1728502940108,5.21579167,2419.4,2419.2,0.8618369]
[1728502940302,5.21579167,2419.4,2419.1,0.8618369]
[1728502940506,4.13332,2419.4,2419.1,0.8618369]
[1728502941450,0.07025324,2419.3,2419.1,0.8618369]
[1728502941668,6.69139666,2419.5,2419.1,0.8618369]
[1728502941872,0.07025324,2419.2,2419.1,0.8618369]
[1728502942042,6.69139666,2419.5,2419.1,4.9955969]
[1728502942244,0.07025324,2419.2,2419.1,4.9955969]
[1728502942445,6.69139666,2419.5,2419.1,4.9955969]
[1728502942698,0.07025324,2419.2,2419.1,4.9955969]
[1728502942838,6.69139666,2419.5,2419.1,4.9955969]
[1728502943042,0.07025324,2419.2,2419.1,9.21194862]
[1728502943377,6.69139666,2419.5,2419.1,4.99619511]
[1728502943378,0.7836,2419.5,2419.1,4.99619511]
[1728502943575,0.07025324,2419.2,2419.1,4.99610195]
[1728502943774,0.7836,2419.5,2419.2,4.1335]
[1728502943976,0.7836,2419.5,2419.2,4.99588637]
[1728502944342,0.7836,2419.5,2419.2,9.12938637]
[1728502944579,0.7836,2419.5,2419.2,4.99588637]
[1728502949700,4.91669,2419.5,2419.2,4.99588637]
[1728502950195,0.7836,2419.5,2419.2,4.99588637]
[1728502951063,4.91669,2419.5,2419.2,4.99588637]
[1728502951264,4.91669,2419.5,2419.2,0.86238637]
[1728502952199,4.91669,2419.5,2419.3,0.86238637]
[1728502952704,4.91669,2419.5,2419.2,0.86238637]
[1728502952908,1.77461666,2419.7,2419.2,2.17713053]
[1728502953068,0.0702601,2419.8,2419.5,4.133]
[1728502953397,0.0702601,2419.8,2419.4,9.12880637]
[1728502953904,4.2028501,2419.8,2419.4,4.99555637]
[1728502954234,5.97746676,2419.8,2419.4,4.99555637]
[1728502956190,5.97746676,2419.8,2419.5,0.86238637]
[1728502956496,0.06150412,2419.7,2419.5,0.86238637]
[1728502956700,5.97746676,2419.8,2419.5,0.86238637]
[1728502956882,0.06150412,2419.6,2419.5,0.86238637]
[1728502957090,5.97746676,2419.8,2419.5,0.86238637]
[1728502957412,5.97746676,2419.8,2419.6,0.86234888]
[1728502957583,5.97746676,2419.8,2419.5,0.86234888]
[1728502960203,1.84487676,2419.8,2419.5,0.86234888]
[1728502960416,4.13291,2419.6,2419.5,0.86234888]
[1728502960922,4.13308,2419.5,2419.4,0.86234888]
[1728502961081,4.13325,2419.4,2419.2,0.86234888]
[1728502961280,5.90786666,2419.4,2419.2,0.86234888]
[1728502961480,4.13325,2419.4,2419.2,0.86234888]
[1728502961682,4.13342,2419.3,2419.2,0.86234888]
[1728502963204,4.90832,2419.3,2419.2,0.86234888]
[1728502963613,5.98993867,2419.3,2419.1,0.86234888]
[1728502963921,4.13359,2419.2,2419.1,0.86234888]
[1728502964226,4.91866,2419.1,2418.9,1.29275536]
[1728502964716,4.91866,2419.1,2419.0,0.86400816]
[1728502965716,6.00134667,2419.1,2419.0,0.86400816]
[1728502965922,6.00134667,2419.1,2418.8,0.86400816]
[1728502965923,0.8327,2418.9,2418.8,0.86400816]
[1728502966106,4.96681,2418.9,2418.8,0.86400816]
[1728502966305,4.13428,2418.8,2418.7,0.86400816]
[1728502966509,4.13428,2418.8,2418.6,0.86400816]
[1728502966889,0.06119578,2418.7,2418.6,0.86400816]
[1728502967184,0.06119578,2418.7,2418.5,1.49847494]
[1728502967398,4.13428,2418.8,2418.5,1.49847494]
[1728502967399,4.13428,2418.8,2418.6,0.86405411]
[1728502967686,0.06119578,2418.7,2418.6,0.86405411]
[1728502967883,4.13428,2418.8,2418.6,0.86405411]
[1728502968088,0.06119578,2418.7,2418.6,0.86405411]
[1728502968289,4.13428,2418.8,2418.6,0.86405411]
[1728502968714,0.06119578,2418.7,2418.6,0.86405411]
[1728502969230,4.96681,2418.9,2418.6,0.86405411]
[1728502969231,0.8327,2418.9,2418.6,0.86405411]
[1728502969392,4.96683,2418.9,2418.6,0.86405411]
[1728502969591,0.06119578,2418.8,2418.6,0.86405411]
[1728502972215,4.19555578,2418.8,2418.5,1.86037369]
[1728502972611,0.06119578,2418.8,2418.5,1.86037369]
[1728502976832,0.06119578,2418.8,2418.5,5.99504369]
[1728502980742,0.06119578,2418.8,2418.6,4.1346]
[1728502980895,0.7716,2419.3,2418.7,10.14613275]
[1728502981091,0.7716,2419.3,2419.0,4.13386]
[1728502981294,0.05888402,2419.2,2419.0,9.13386]
[1728502981518,4.90473,2419.5,2419.1,5.13328755]
[1728502981689,4.90473,2419.5,2419.1,4.13376]
[1728502982911,4.90473,2419.5,2419.0,10.76597546]
[1728502983116,4.90473,2419.5,2419.0,10.76596546]
[1728502983368,4.90473,2419.5,2419.1,4.13372]
[1728502984049,4.90473,2419.5,2419.0,14.89981546]
[1728502984216,4.90473,2419.5,2419.1,5.75301708]
[1728502984740,0.7716,2419.5,2419.1,5.75301708]
[1728502985316,0.7716,2419.5,2419.2,4.1335]
[1728502985646,2.54121666,2419.7,2419.3,4.13342]
[1728502986044,0.7666,2419.7,2419.3,4.68433316]
[1728502986219,0.0702601,2419.8,2419.4,0.7764]
[1728502986409,0.0702601,2419.8,2419.4,4.90956]
[1728502986628,0.05888402,2419.7,2419.4,9.04264]
[1728502986837,0.05888402,2419.7,2419.4,9.90405546]
[1728502987010,0.0702601,2419.8,2419.5,1.61925708]
[1728502987307,0.05888402,2419.7,2419.5,1.61925708]
[1728502987808,0.0702601,2419.8,2419.5,1.61925708]
[1728502988032,0.05888402,2419.6,2419.5,1.61925708]
[1728502988232,0.0702601,2419.8,2419.5,1.61925708]
[1728502988740,0.0702601,2419.8,2419.5,5.75228708]
[1728502988741,0.05888402,2419.7,2419.5,5.75228708]
[1728502988926,0.05888402,2419.7,2419.6,0.55091316]
[1728502989130,1.84487676,2419.8,2419.6,0.55091316]
[1728502989510,0.05888402,2419.7,2419.6,0.55091316]
[1728502990052,1.84487676,2419.8,2419.6,0.55091316]
[1728502990053,0.0702601,2419.8,2419.7,4.13274]
[1728502990350,0.0702601,2419.8,2419.7,5.10053786]
[1728502990351,0.12914412,2419.8,2419.7,5.10053786]
[1728502990840,0.0702601,2419.8,2419.7,5.10053786]
[1728502993861,0.12946942,2419.8,2419.7,5.10053786]
[1728502994170,0.0702601,2419.8,2419.7,5.10053786]
[1728502994557,0.12946942,2419.8,2419.7,5.10053786]
[1728502994717,0.0702601,2419.8,2419.7,5.10053786]
[1728502995530,0.12946942,2419.8,2419.7,5.10053786]
[1728502995764,0.0702601,2419.8,2419.7,5.10053786]
[1728502995959,0.12946942,2419.8,2419.7,5.10053786]
[1728502996611,0.12946942,2419.8,2419.7,0.96779786]
[1728502996858,0.12946942,2419.8,2419.6,4.68382316]
[1728502997051,0.12946942,2419.8,2419.6,8.81664316]
[1728502997358,0.12946942,2419.8,2419.6,4.68373316]
[1728502997731,0.12946942,2419.8,2419.6,8.81657316]
[1728502999041,0.12946942,2419.8,2419.7,4.13274]
[1728503000396,0.12946942,2419.8,2419.6,4.68373316]
[1728503001068,0.12946942,2419.8,2419.6,8.81656316]
[1728503002058,0.12946942,2419.8,2419.6,8.81654316]
[1728503002372,0.12946942,2419.8,2419.6,4.68372316]
[1728503002530,0.12946942,2419.8,2419.6,8.81652316]
[1728503003885,0.12946942,2419.8,2419.7,4.13274]
[1728503004940,0.12946942,2419.8,2419.6,8.81655316]
[1728503005478,0.12946942,2419.8,2419.6,4.68371316]
[1728503005900,0.0702601,2419.8,2419.6,8.81651316]
[1728503006178,0.0702601,2419.8,2419.6,8.81654316]
[1728503006391,0.05966468,2419.7,2419.6,4.68371316]
[1728503006977,0.0702601,2419.8,2419.6,4.68371316]
[1728503007163,0.05966468,2419.7,2419.6,4.68371316]
[1728503007365,0.0702601,2419.8,2419.6,4.68371316]
[1728503007573,0.05966468,2419.7,2419.6,4.68371316]
[1728503007765,0.0702601,2419.8,2419.4,0.98532384]
[1728503007936,0.83176468,2419.7,2419.5,4.13298]
[1728503008845,0.83176468,2419.7,2419.4,4.34208384]
[1728503009066,0.83176468,2419.7,2419.5,4.133]
[1728503009574,0.83176468,2419.7,2419.4,4.34215384]
[1728503009872,0.83176468,2419.7,2419.4,4.34203384]
[1728503010042,0.83176468,2419.7,2419.5,4.13307]
[1728503013592,0.05966468,2419.7,2419.5,4.13307]
[1728503013990,0.0702601,2419.8,2419.5,4.13307]
[1728503014290,0.05966468,2419.6,2419.5,4.13307]
[1728503014657,0.0702601,2419.8,2419.5,4.13307]
[1728503014897,0.05966468,2419.7,2419.5,4.13307]
[1728503015097,1.84487676,2419.8,2419.4,5.74225877]
[1728503015396,0.05964842,2419.7,2419.5,4.13304]
[1728503015693,0.05964842,2419.6,2419.5,4.13304]
[1728503015890,1.84487676,2419.8,2419.5,4.13304]
[1728503016192,0.05964842,2419.7,2419.5,4.13304]
[1728503016572,0.0702601,2419.8,2419.5,4.13304]
[1728503016753,0.05964842,2419.6,2419.5,4.13304]
[1728503016959,0.0702601,2419.8,2419.5,4.13304]
[1728503017459,0.05964842,2419.7,2419.5,4.13304]
[1728503017660,0.0702601,2419.8,2419.5,4.13304]
[1728503017894,0.05964842,2419.7,2419.5,4.13304]
[1728503018104,0.0702601,2419.8,2419.5,4.13304]
[1728503018300,0.05964842,2419.7,2419.5,4.13304]
[1728503018461,0.0702601,2419.8,2419.5,4.13304]
[1728503018661,0.05964842,2419.7,2419.5,4.13304]
[1728503018916,0.0702601,2419.8,2419.5,4.13304]
[1728503019065,0.05964842,2419.6,2419.5,4.13304]
[1728503019265,0.0702601,2419.8,2419.5,4.13304]
[1728503019597,0.05964842,2419.7,2419.5,4.13304]
[1728503019799,0.0702601,2419.8,2419.5,4.13304]
[1728503019999,0.05964842,2419.6,2419.5,4.13304]
[1728503020206,0.0702601,2419.8,2419.5,4.13304]
[1728503020515,0.05964842,2419.7,2419.5,4.13304]
[1728503020707,0.0702601,2419.8,2419.5,4.13304]
[1728503020905,0.05964842,2419.7,2419.5,4.13304]
[1728503021202,0.0702601,2419.8,2419.5,4.13304]
[1728503021373,0.05964842,2419.6,2419.5,4.13304]
[1728503021575,0.0702601,2419.8,2419.5,4.13304]
[1728503022075,0.05964842,2419.7,2419.5,4.13304]
[1728503022274,0.0702601,2419.8,2419.5,4.13304]
[1728503022503,0.05964842,2419.6,2419.5,4.99445546]
[1728503022689,0.0702601,2419.8,2419.5,4.99445546]
[1728503024238,0.05964842,2419.7,2419.5,4.99445546]
[1728503024573,0.0702601,2419.8,2419.5,4.99445546]
[1728503024793,0.05964842,2419.6,2419.5,4.99445546]
[1728503024993,0.0702601,2419.8,2419.5,4.99445546]
[1728503025515,0.05964842,2419.7,2419.6,0.86141546]
[1728503025701,0.0702601,2419.8,2419.6,0.86141546]
[1728503025909,0.05964842,2419.7,2419.6,0.86141546]
[1728503026212,0.0702601,2419.8,2419.6,0.86141546]
[1728503026420,0.05964842,2419.7,2419.6,0.86141546]
[1728503026719,0.0702601,2419.8,2419.6,0.86141546]
[1728503026892,0.05964842,2419.7,2419.6,0.86141546]
[1728503027098,0.0702601,2419.8,2419.6,0.86141546]
[1728503027305,0.05964842,2419.7,2419.6,0.86141546]
[1728503027621,0.0702601,2419.8,2419.6,0.86141546]
[1728503027783,0.05964842,2419.7,2419.6,12.48652721]
[1728503027987,0.0702601,2419.8,2419.7,4.70437039]
[1728503028395,0.12790665,2419.8,2419.7,6.4280442]
[1728503028931,0.0702601,2419.8,2419.7,6.4280442]
[1728503029251,0.0702601,2419.8,2419.7,7.36292259]
[1728503029407,0.0702601,2419.8,2419.7,6.7912922]
[1728503029802,0.0702601,2419.8,2419.7,6.87393703]
[1728503030292,0.0702601,2419.8,2419.7,7.18245767]
[1728503030896,0.0702601,2419.8,2419.7,7.18247628]
[1728503031306,0.0702601,2419.8,2419.7,5.45880247]
[1728503033231,0.0702601,2419.8,2419.7,7.18748268]
[1728503033536,0.0702601,2419.8,2419.7,5.45880247]
[1728503033697,0.0702601,2419.8,2419.7,7.18748755]
[1728503034235,0.12790665,2419.8,2419.7,6.8789483]
[1728503034539,0.12790665,2419.8,2419.7,7.18765548]
[1728503034895,0.0702601,2419.8,2419.7,7.18765548]
[1728503035091,0.12790665,2419.8,2419.7,7.18765548]
[1728503035443,0.0702601,2419.8,2419.7,7.18765548]
[1728503035970,0.12790665,2419.8,2419.7,5.4589704]
[1728503036467,0.12790665,2419.8,2419.7,7.61992697]
[1728503037262,0.12790665,2419.8,2419.7,7.61970637]
[1728503037559,0.12790665,2419.8,2419.7,7.61966334]
[1728503038339,0.12790665,2419.8,2419.7,5.45892737]
[1728503038865,0.0702601,2419.8,2419.7,7.61966334]
[1728503039031,0.0702601,2419.8,2419.7,6.60214012]
[1728503039232,0.12790665,2419.8,2419.7,1.72860743]
[1728503041533,0.02583646,2419.8,2419.7,1.72860743]
[1728503041756,4.13241,2419.9,2419.7,1.72860743]
[1728503041958,4.91111,2419.9,2419.8,1.29573708]
[1728503042269,0.7787,2419.9,2419.8,0.86410997]
[1728503043271,0.7787,2419.9,2419.8,1.29573708]
[1728503043479,0.829,2420.1,2419.8,6.23900652]
[1728503043775,0.829,2420.1,2420.0,0.86416025]
[1728503044552,4.96106,2420.1,2419.9,0.86416025]
[1728503047179,0.829,2420.1,2419.9,0.86416025]
[1728503047368,0.829,2420.1,2420.0,0.86416025]
[1728503047880,0.829,2420.1,2419.9,0.86416025]
[1728503049280,0.05669208,2420.0,2419.9,0.86416025]
[1728503052482,0.05669208,2420.0,2419.9,6.32116379]
[1728503052683,0.8251,2420.3,2420.0,4.13222]
[1728503052886,0.8251,2420.3,2420.1,0.86402333]
[1728503053756,4.95684,2420.3,2420.0,0.86402333]
[1728503054501,4.95368809,2420.3,2420.0,0.86402333]
[1728503055068,4.95368809,2420.3,2420.1,0.86402333]
[1728503055268,4.95368809,2420.3,2420.0,1.296035]
[1728503055269,4.95368809,2420.3,2420.0,0.86402333]
[1728503055479,4.95368809,2420.3,2420.1,0.86402333]
[1728503056096,0.82194809,2420.3,2420.1,4.99598333]
[1728503056292,8.26289,2420.5,2420.1,5.07861608]
[1728503056492,4.13161,2420.4,2420.1,0.86402333]
[1728503056804,4.13179,2420.3,2420.1,0.86402333]
[1728503057094,4.13179,2420.3,2420.0,6.296035]
[1728503057095,4.13179,2420.3,2420.0,5.86402333]
[1728503057277,4.89259,2420.3,2420.1,0.86402333]
[1728503057958,4.89259,2420.3,2420.0,5.86402333]
[1728503059481,4.1319,2420.2,2420.0,5.86402333]
[1728503060009,4.89259,2420.3,2420.1,0.86402333]
[1728503060189,4.89259,2420.3,2420.0,5.86402333]
[1728503060366,4.89259,2420.3,2420.1,0.86402333]
[1728503060580,0.7608,2420.3,2420.1,0.86402333]
[1728503061280,4.89252,2420.3,2420.1,0.86402333]
[1728503061481,0.05490658,2420.2,2420.1,0.86402333]
[1728503061676,4.89252,2420.3,2420.1,0.86402333]
[1728503062108,0.05490658,2420.2,2420.1,0.86402333]
[1728503062783,4.89252,2420.3,2420.1,0.86402333]
[1728503063006,0.05490658,2420.2,2420.1,0.86402333]
[1728503063209,4.89252,2420.3,2420.1,0.86402333]
[1728503063392,0.05490658,2420.2,2420.1,0.86402333]
[1728503063599,4.89252,2420.3,2420.1,0.86402333]
[1728503063792,0.05490658,2420.2,2420.1,0.86402333]
[1728503064014,4.89252,2420.3,2420.1,0.86402333]
[1728503064212,0.05490658,2420.2,2420.1,0.86402333]
[1728503064407,4.89252,2420.3,2420.1,0.86402333]
[1728503064617,0.05490658,2420.2,2420.1,0.86402333]
[1728503064831,4.89252,2420.3,2420.1,0.86402333]
[1728503065030,0.05490658,2420.2,2420.1,0.86402333]
[1728503065186,4.89252,2420.3,2420.1,0.86402333]
[1728503065387,0.05490658,2420.2,2420.1,0.86402333]
[1728503065591,4.89252,2420.3,2420.1,0.86402333]
[1728503065794,0.05490658,2420.2,2420.1,0.86402333]
[1728503066026,4.89252,2420.3,2420.1,0.86402333]
[1728503066231,0.05503715,2420.2,2420.1,0.86402333]
[1728503066428,4.89252,2420.3,2420.1,0.86402333]
[1728503066634,0.05503715,2420.2,2420.1,0.86402333]
[1728503066931,4.89252,2420.3,2420.1,0.86402333]
[1728503066932,0.7608,2420.3,2420.1,0.86402333]
[1728503067135,0.05507794,2420.2,2420.1,0.86402333]
[1728503067340,4.89252,2420.3,2420.1,0.86402333]
[1728503067499,0.05507386,2420.2,2420.1,0.86402333]
[1728503067690,4.89252,2420.3,2420.1,0.86402333]
[1728503067893,0.05507386,2420.2,2420.1,0.86402333]
[1728503068132,4.89252,2420.3,2420.1,0.86402333]
[1728503068532,0.05507386,2420.2,2420.1,0.86402333]
[1728503068833,4.89252,2420.3,2420.1,0.86402333]
[1728503069009,0.05507386,2420.2,2420.1,0.86402333]
[1728503069203,4.89252,2420.3,2420.1,0.86402333]
[1728503069411,0.05507386,2420.2,2420.1,0.86402333]
[1728503070307,4.89252,2420.3,2420.1,0.86402333]
[1728503070507,0.05507386,2420.2,2420.1,0.86402333]
[1728503070708,4.89252,2420.3,2420.1,0.86402333]
[1728503070904,4.18695386,2420.2,2420.1,0.86402333]
[1728503071153,4.90226,2420.1,2420.0,0.86402333]
[1728503071435,4.90226,2420.1,2419.8,1.72860743]
[1728503071436,4.9026,2419.9,2419.8,0.86402333]
[1728503071632,4.13257,2419.8,2419.7,0.86402333]
[1728503071846,4.13257,2419.8,2419.6,0.86402333]
[1728503071847,4.13274,2419.7,2419.6,0.86402333]
[1728503072441,4.18771188,2419.7,2419.6,0.86402333]
[1728503076367,0.05497188,2419.7,2419.6,0.86402333]
[1728503076567,4.13258,2419.8,2419.5,1.296035]
[1728503076766,0.05476787,2419.7,2419.6,0.86441393]
[1728503076942,4.13258,2419.8,2419.5,1.296035]
[1728503077135,4.13258,2419.8,2419.7,0.86437964]
[1728503077379,4.13258,2419.8,2419.6,0.86437964]
[1728503078172,4.90276,2419.9,2419.6,0.86437964]
[1728503078345,0.8293,2420.3,2419.9,4.13233]
[1728503078552,9.09228,2420.5,2420.0,5.88654496]
[1728503078734,4.13165,2420.4,2420.1,0.86437964]
[1728503078937,4.13165,2420.4,2420.0,1.67177964]
[1728503079132,4.13165,2420.4,2420.0,5.80400964]
[1728503081364,4.13165,2420.4,2420.0,6.65106429]
[1728503083975,4.13165,2420.4,2420.1,0.86437964]
[1728503084178,4.13165,2420.4,2420.0,6.65098429]
[1728503084965,4.13165,2420.4,2420.1,0.86437964]
[1728503088700,4.13165,2420.4,2420.0,6.65098429]
[1728503091384,4.13165,2420.4,2420.1,0.86437964]
[1728503091596,4.13165,2420.4,2420.0,5.80392964]
[1728503091796,4.13165,2420.4,2420.1,0.86437964]
[1728503094603,10.86687666,2420.5,2420.1,0.86437964]
[1728503094783,0.0551228,2420.3,2420.1,0.86437964]
[1728503094971,10.86687666,2420.5,2420.1,0.86437964]
[1728503095160,0.0551228,2420.2,2420.1,0.86437964]
[1728503095362,10.86687666,2420.5,2420.1,0.86437964]
[1728503095554,0.0551228,2420.2,2420.1,0.86437964]
[1728503095754,4.13157,2420.4,2420.1,0.86437964]
[1728503096457,0.0551228,2420.3,2420.1,0.86437964]
[1728503100862,0.0551228,2420.3,2420.1,4.99639964]
[1728503101066,10.86686666,2420.5,2420.1,4.99639964]
[1728503101265,0.0551432,2420.2,2420.1,4.99639964]
[1728503101505,6.73537666,2420.5,2420.1,1.9875721]
[1728503101799,0.0551432,2420.2,2420.1,4.99631964]
[1728503101964,6.73537666,2420.5,2420.1,4.99631964]
[1728503102162,4.88704,2420.7,2420.3,4.13155]
[1728503102363,0.05521662,2420.6,2420.4,4.13146]
[1728503102600,0.05521662,2420.6,2420.4,4.13145]
[1728503103918,4.13111,2420.7,2420.4,5.86437964]
[1728503104064,10.82091666,2420.8,2420.4,5.0]
[1728503104370,0.05531041,2420.6,2420.4,6.62184546]
[1728503104572,4.13111,2420.7,2420.4,5.0]
[1728503104903,5.90581666,2420.6,2420.3,0.86437964]
[1728503105085,5.96112707,2420.6,2420.2,0.86437964]
[1728503105462,10.03715666,2420.6,2420.2,0.86437964]
[1728503105668,0.05531041,2420.5,2420.2,0.86437964]
[1728503105890,4.94582041,2420.5,2420.1,5.78333964]
[1728503106081,4.94582041,2420.5,2420.2,0.86437964]
[1728503106804,4.94582041,2420.5,2420.1,6.07070652]
[1728503107807,4.94582041,2420.5,2420.2,0.86437964]
[1728503108268,0.81441041,2420.5,2420.2,4.99623964]
[1728503108464,0.05531041,2420.5,2420.2,4.99623964]
[1728503108669,0.05531041,2420.5,2420.4,4.13154]
[1728503108871,0.05531041,2420.5,2420.4,4.89934]
[1728503109208,0.0554368,2420.5,2420.4,5.76371964]
[1728503109393,0.0554368,2420.5,2420.4,4.89934]
[1728503109700,4.13093,2420.8,2420.4,4.89934]
[1728503110202,0.0554368,2420.7,2420.5,4.13136]
[1728503110403,0.0554368,2420.7,2420.4,6.05751656]
[1728503110606,0.05548165,2420.6,2420.5,4.21387493]
[1728503110979,4.9424,2420.9,2420.5,4.21387493]
[1728503111477,0.05548165,2420.8,2420.7,4.13103]
[1728503111812,4.88245,2421.1,2420.7,4.13103]
[1728503111813,4.88245,2421.1,2420.7,0.42136549]
[1728503112022,9.01289,2421.1,2420.7,0.42136549]
[1728503112520,0.05549388,2421.0,2420.7,0.42136549]
[1728503112720,4.18604388,2421.0,2420.7,0.42136549]
[1728503114726,0.053693,2420.9,2420.7,4.55225549]
[1728503115012,0.053693,2420.9,2420.7,0.42136549]
[1728503115229,4.13052,2421.0,2420.7,0.42136549]
[1728503115387,0.053693,2420.8,2420.7,0.42136549]
[1728503115590,4.13052,2421.0,2420.7,0.42136549]
[1728503115793,0.053693,2420.8,2420.6,4.21379479]
[1728503116128,4.13052,2421.0,2420.6,4.21379479]
[1728503116412,0.05370116,2420.7,2420.6,4.21379479]
[1728503116617,4.13052,2421.0,2420.6,4.21379479]
[1728503116944,0.05370116,2420.9,2420.6,4.21379479]
[1728503117123,0.05370116,2420.9,2420.6,5.22578847]
[1728503117293,0.05370116,2420.9,2420.6,9.35690847]
[1728503117494,0.05370116,2420.9,2420.6,5.14311368]
[1728503117699,0.05370116,2420.9,2420.7,0.7563]